bitfinex/quotes_BTCUSD_20250904
["timestamp","ask_amount","ask_price","bid_price","bid_amount"]
[1757002847664,0.71626573,109760.0,109750.0,0.19069024]
[1757002847854,0.71626573,109760.0,109750.0,0.00618]
[1757002848820,0.71626573,109760.0,109750.0,0.001]
[1757002849233,0.71903573,109760.0,109750.0,0.001]
[1757002849647,0.71626573,109760.0,109750.0,0.001]
[1757002850432,0.71622573,109760.0,109750.0,0.001]
[1757002850668,0.71622573,109760.0,109750.0,0.00621]
[1757002850874,0.33887574,109760.0,109750.0,0.00621]
[1757002851027,0.71622573,109760.0,109750.0,0.00621]
[1757002851467,0.71424573,109760.0,109750.0,0.18844234]
[1757002851674,0.71424573,109760.0,109750.0,0.00621]
[1757002851889,0.71622573,109760.0,109750.0,0.00621]
[1757002852294,0.71424573,109760.0,109750.0,0.18844234]
[1757002853461,0.60127755,109780.0,109760.0,0.18221574]
[1757002853462,0.59849755,109780.0,109760.0,0.18221574]
[1757002853667,1.06336754,109780.0,109770.0,0.00521]
[1757002853877,1.06534754,109780.0,109770.0,0.00521]
[1757002854086,1.06534754,109780.0,109770.0,0.18740914]
[1757002854261,0.72534754,109780.0,109770.0,0.00521]
[1757002854612,0.34601755,109780.0,109770.0,0.18740914]
[1757002855214,0.34901755,109780.0,109770.0,0.18740914]
[1757002855424,0.35101755,109780.0,109770.0,0.18740914]
[1757002855703,0.57368754,109780.0,109770.0,0.18740914]
[1757002855934,0.72836754,109780.0,109770.0,0.18740914]
[1757002856313,0.57168754,109780.0,109770.0,0.18740914]
[1757002856513,0.72636754,109780.0,109770.0,0.18740914]
[1757002856747,0.72636754,109780.0,109760.0,0.18529574]
[1757002856748,0.72834754,109780.0,109760.0,0.18529574]
[1757002856927,0.33687914,109770.0,109760.0,0.18529574]
[1757002857329,0.33687914,109770.0,109760.0,0.18742574]
[1757002857557,0.15468,109770.0,109760.0,0.18742574]
[1757002857769,0.33687914,109770.0,109760.0,0.18742574]
[1757002859340,0.33687914,109770.0,109760.0,0.18842574]
[1757002861788,0.71621913,109770.0,109760.0,0.00313]
[1757002861992,0.71897913,109770.0,109760.0,0.001]
[1757002862975,0.34162914,109770.0,109760.0,0.001]
[1757002863171,0.56153913,109770.0,109760.0,0.001]
[1757002863407,0.71617913,109770.0,109760.0,0.001]
[1757002863654,1.09628912,109770.0,109760.0,0.001]
[1757002864144,0.33882914,109770.0,109760.0,0.001]
[1757002864363,0.71893913,109770.0,109760.0,0.001]
[1757002865771,1.09628912,109770.0,109760.0,0.001]
[1757002866189,1.18820511,109770.0,109760.0,0.001]
[1757002867157,1.03356511,109770.0,109760.0,0.001]
[1757002867355,1.18820511,109770.0,109760.0,0.001]
[1757002867889,1.59532511,109770.0,109760.0,0.001]
[1757002869129,0.18223234,109750.0,109740.0,0.00308]
[1757002869332,0.33687234,109750.0,109740.0,0.00308]
[1757002869543,0.71622233,109750.0,109740.0,0.00506]
[1757002870352,0.71422233,109750.0,109740.0,0.18730895]
[1757002870554,0.71422233,109750.0,109740.0,0.00506]
[1757002871308,0.71622233,109750.0,109740.0,0.00706]
[1757002871617,0.71622233,109750.0,109740.0,0.00806]
[1757002872931,0.33687234,109750.0,109740.0,0.19030895]
[1757002875555,0.55958078,109760.0,109740.0,0.19030895]
[1757002875841,0.33683234,109750.0,109740.0,0.18722895]
[1757002876220,0.33683234,109750.0,109740.0,0.19023895]
[1757002877105,0.33683234,109750.0,109740.0,0.18823895]
[1757002877713,0.33683234,109750.0,109740.0,0.18923895]
[1757002878150,0.33683234,109750.0,109740.0,0.18823895]
[1757002878362,0.33683234,109750.0,109740.0,0.00599]
[1757002878603,0.71616233,109750.0,109740.0,0.001]
[1757002878771,0.71616233,109750.0,109740.0,0.003]
[1757002881171,0.71893233,109750.0,109740.0,0.003]
[1757002881576,0.71616233,109750.0,109740.0,0.003]
[1757002881812,0.71616233,109750.0,109740.0,0.001]
[1757002882222,0.56156233,109750.0,109740.0,0.002]
[1757002882375,0.33881234,109750.0,109740.0,0.00599]
[1757002882577,0.71616233,109750.0,109740.0,0.00599]
[1757002882822,0.71616233,109750.0,109740.0,0.001]
[1757002884168,0.56156233,109750.0,109740.0,0.001]
[1757002884377,0.71616233,109750.0,109740.0,0.001]
[1757002884775,0.71893233,109750.0,109740.0,0.001]
[1757002886386,1.15084832,109750.0,109740.0,0.001]
[1757002887070,1.15084832,109750.0,109710.0,0.29593003]
[1757002887071,0.18226556,109730.0,109710.0,0.2868151]
[1757002887295,0.55963216,109720.0,109710.0,0.2588551]
[1757002887511,0.55963216,109720.0,109710.0,0.26130515]
[1757002887512,0.71423216,109720.0,109710.0,0.26130515]
[1757002887920,0.33688217,109720.0,109710.0,0.26130515]
[1757002888120,0.33688217,109720.0,109710.0,0.18775884]
[1757002888552,0.33688217,109720.0,109710.0,0.19075884]
[1757002888940,0.18228217,109720.0,109710.0,0.19075884]
[1757002889118,0.33688217,109720.0,109710.0,0.19075884]
[1757002889533,0.1546,109720.0,109710.0,0.19075884]
[1757002889898,0.1546,109720.0,109710.0,0.19275884]
[1757002890121,0.16417008,109720.0,109710.0,0.19275884]
[1757002890409,0.34645225,109720.0,109710.0,0.19275884]
[1757002891014,0.72380224,109720.0,109710.0,0.19275884]
[1757002891212,0.72578224,109720.0,109710.0,0.19275884]
[1757002892141,0.57118224,109720.0,109710.0,0.19275884]
[1757002892363,0.72578224,109720.0,109710.0,0.19275884]
[1757002892585,0.57118224,109720.0,109710.0,0.18775884]
[1757002892782,0.72380224,109720.0,109710.0,0.18975884]
[1757002893039,0.54152007,109720.0,109710.0,0.18975884]
[1757002893251,0.54152007,109720.0,109710.0,0.19075884]
[1757002893488,0.34645225,109720.0,109710.0,0.19075884]
[1757002893672,0.72394276,109720.0,109710.0,0.19075884]
[1757002894368,0.34645225,109720.0,109710.0,0.19075884]
[1757002894516,0.16417008,109720.0,109710.0,0.19075884]
[1757002894724,0.71437268,109720.0,109710.0,0.19075884]
[1757002894921,0.55977268,109720.0,109710.0,0.19075884]
[1757002895569,0.55977268,109720.0,109710.0,0.00846006]
[1757002895726,0.56175268,109720.0,109710.0,0.00545006]
[1757002895951,0.93924319,109720.0,109710.0,0.00347006]
[1757002896311,0.93924319,109720.0,109710.0,0.00860006]
[1757002896521,0.56175268,109720.0,109710.0,0.00860006]
[1757002896721,0.93924319,109720.0,109710.0,0.00347006]
[1757002897135,0.93924319,109720.0,109710.0,0.00147006]
[1757002897322,0.93924319,109720.0,109710.0,0.00247006]
[1757002898024,0.93924319,109720.0,109710.0,0.00147006]
[1757002898398,0.93924319,109720.0,109710.0,0.00374879]
[1757002898757,1.09380319,109720.0,109710.0,0.00374879]
[1757002899099,1.09380319,109720.0,109710.0,0.00147006]
[1757002899686,1.1029529,109720.0,109710.0,0.00147006]
[1757002902453,1.1029529,109720.0,109710.0,0.00374879]
[1757002902856,1.1029529,109720.0,109710.0,0.00147006]
[1757002903889,0.72546239,109720.0,109710.0,0.00147006]
[1757002904046,0.34599188,109720.0,109710.0,0.19117757]
[1757002904245,0.72348239,109720.0,109710.0,0.18889884]
[1757002904456,0.16370971,109720.0,109710.0,0.18889884]
[1757002904657,0.00914971,109720.0,109710.0,0.56638935]
[1757002904863,0.74171797,109730.0,109710.0,0.56638935]
[1757002905232,0.74171797,109730.0,109720.0,0.18543217]
[1757002905416,0.75102317,109730.0,109720.0,0.00513]
[1757002906209,0.75202317,109730.0,109720.0,0.00513]
[1757002906613,0.18228217,109720.0,109710.0,0.00362006]
[1757002906813,0.93726319,109720.0,109710.0,0.00047006]
[1757002907042,0.93925319,109720.0,109710.0,0.00047006]
[1757002907240,0.18427217,109720.0,109710.0,0.00047006]
[1757002907438,0.94201319,109720.0,109710.0,0.00047006]
[1757002908394,0.93925319,109720.0,109710.0,0.18474884]
[1757002908632,0.56176268,109720.0,109710.0,0.18789884]
[1757002908805,0.56176268,109720.0,109710.0,0.00660006]
[1757002909017,0.18228217,109720.0,109710.0,0.19117732]
[1757002909219,0.18228217,109720.0,109710.0,0.18889859]
[1757002909457,0.55977268,109720.0,109710.0,0.18889859]
[1757002910100,0.18228217,109720.0,109710.0,0.18889859]
[1757002910272,0.55977268,109720.0,109710.0,0.18889859]
[1757002911010,0.75102317,109730.0,109710.0,0.18889859]
[1757002911222,0.21897266,109730.0,109720.0,0.18543217]
[1757002911428,0.75102317,109730.0,109720.0,0.18741217]
[1757002912264,0.37353266,109730.0,109720.0,0.18741217]
[1757002912481,0.75202317,109730.0,109720.0,0.18741217]
[1757002912899,0.75102317,109730.0,109720.0,0.18741217]
[1757002913318,0.75202317,109730.0,109720.0,0.18741217]
[1757002913918,0.75202317,109730.0,109720.0,0.00513]
[1757002914130,0.75202317,109730.0,109720.0,0.18741217]
[1757002914555,0.75400317,109730.0,109720.0,0.00513]
[1757002914799,0.75400317,109730.0,109720.0,0.18741217]
[1757002914984,0.59746317,109730.0,109720.0,0.18741217]
[1757002915159,0.75202317,109730.0,109720.0,0.18741217]
[1757002915578,0.75202317,109730.0,109720.0,0.00513]
[1757002915947,0.75400317,109730.0,109720.0,0.18741217]
[1757002916193,0.0377071,109730.0,109720.0,0.18741217]
[1757002916402,0.72462127,109730.0,109720.0,0.18741217]
[1757002916827,0.1648652,109730.0,109720.0,0.18741217]
[1757002917029,0.34713076,109730.0,109720.0,0.18741217]
[1757002917457,0.1648652,109730.0,109720.0,0.18741217]
[1757002917700,0.0103052,109730.0,109720.0,0.56490268]
[1757002917929,0.001,109730.0,109720.0,1.18882918]
[1757002918166,0.001,109730.0,109720.0,1.2481646]
[1757002918394,0.001,109730.0,109720.0,0.87067409]
[1757002918595,0.001,109730.0,109720.0,1.2481646]
[1757002918797,0.001,109730.0,109720.0,1.5881646]
[1757002919054,0.001,109730.0,109720.0,1.59765249]
[1757002919270,0.001,109730.0,109720.0,1.62954758]
[1757002919416,0.00941705,109740.0,109730.0,0.18226556]
[1757002919617,0.71424399,109750.0,109740.0,0.18224895]
[1757002919836,0.71424399,109750.0,109740.0,0.18737895]
[1757002921534,0.71622399,109750.0,109740.0,0.18737895]
[1757002921968,0.71622399,109750.0,109730.0,0.459245]
[1757002922183,0.55973946,109740.0,109730.0,0.36732901]
[1757002922396,0.56172946,109740.0,109730.0,0.36930901]
[1757002922640,0.57109968,109740.0,109730.0,0.36930901]
[1757002922841,0.00937022,109740.0,109730.0,0.21478901]
[1757002923251,0.71524399,109750.0,109730.0,0.21478901]
[1757002923453,0.37749051,109740.0,109730.0,0.21578901]
[1757002923682,0.55973946,109740.0,109730.0,0.21578901]
[1757002924071,0.33675348,109750.0,109740.0,0.18224895]
[1757002924270,0.71622399,109750.0,109740.0,0.18224895]
[1757002924638,0.71622399,109750.0,109740.0,0.18422895]
[1757002924824,0.7233356,109750.0,109740.0,0.18737895]
[1757002925032,0.7253156,109750.0,109740.0,0.18737895]
[1757002925259,0.00909161,109750.0,109740.0,0.56486946]
[1757002925472,0.001,109750.0,109740.0,0.18737895]
[1757002925687,0.7142413,109760.0,109740.0,0.18737895]
[1757002925888,0.72352123,109760.0,109750.0,0.00295]
[1757002926091,0.72547123,109760.0,109750.0,0.00404]
[1757002927577,0.18223234,109750.0,109740.0,0.18224895]
[1757002928008,0.55972285,109750.0,109740.0,0.18433895]
[1757002928144,0.55972285,109750.0,109740.0,0.18728895]
[1757002928716,0.56167285,109750.0,109740.0,0.18728895]
[1757002928871,0.56267285,109750.0,109740.0,0.18728895]
[1757002929675,0.18518234,109750.0,109740.0,0.18728895]
[1757002929878,0.56267285,109750.0,109740.0,0.18728895]
[1757002930648,0.56267285,109750.0,109730.0,0.37620228]
[1757002930859,0.56267285,109750.0,109740.0,0.18452706]
[1757002931088,0.56267285,109750.0,109740.0,0.18433895]
[1757002931345,0.15548,109750.0,109740.0,0.18728895]
[1757002931556,0.33771234,109750.0,109740.0,0.18728895]
[1757002931754,0.71520285,109750.0,109740.0,0.18728895]
[1757002932410,0.68562318,109750.0,109740.0,0.18728895]
[1757002932700,0.33671234,109750.0,109740.0,0.18728895]
[1757002933550,0.71615285,109750.0,109740.0,0.18728895]
[1757002933965,0.15448,109750.0,109740.0,0.18728895]
[1757002934525,0.19149567,109760.0,109750.0,0.18223234]
[1757002934756,0.00927993,109760.0,109750.0,0.56476285]
[1757002934962,0.16375993,109760.0,109750.0,0.56476285]
[1757002935166,0.33669574,109760.0,109750.0,0.56476285]
[1757002935394,0.15448,109760.0,109750.0,0.18727234]
[1757002935622,0.34616939,109760.0,109750.0,0.34175234]
[1757002935785,0.34716939,109760.0,109750.0,0.34175234]
[1757002935944,0.01047365,109760.0,109750.0,0.56476285]
[1757002936146,0.01147365,109760.0,109750.0,0.56476285]
[1757002936378,0.01147365,109760.0,109750.0,0.18727234]
[1757002937047,0.002,109760.0,109750.0,0.65667884]
[1757002937476,0.002,109760.0,109750.0,0.30657473]
[1757002937655,0.002,109760.0,109750.0,0.83850524]
[1757002937802,0.001,109760.0,109750.0,0.83850524]
[1757002938415,0.72333663,109780.0,109760.0,0.18220268]
[1757002938658,0.72333663,109780.0,109770.0,0.00227748]
[1757002938857,0.72528663,109780.0,109770.0,0.00227748]
[1757002939254,0.73783884,109780.0,109770.0,0.00227748]
[1757002939458,0.73783884,109780.0,109760.0,0.33959268]
[1757002939632,0.35724833,109780.0,109760.0,0.33959268]
[1757002939977,0.73678581,109780.0,109770.0,0.00227748]
[1757002940349,0.18219914,109770.0,109760.0,0.18515268]
[1757002940766,0.18221574,109760.0,109750.0,0.30153473]
[1757002940967,0.56165625,109760.0,109750.0,0.30362473]
[1757002941165,0.71609625,109760.0,109750.0,0.27918833]
[1757002941331,0.18219914,109770.0,109750.0,0.27918833]
[1757002941543,0.71412965,109770.0,109750.0,0.27918833]
[1757002941943,0.15444,109770.0,109760.0,0.18744343]
[1757002942191,0.33663914,109770.0,109760.0,0.18725574]
[1757002942353,0.71412965,109770.0,109760.0,0.18725574]
[1757002942539,0.15444,109770.0,109760.0,0.34169574]
[1757002942742,0.18219914,109770.0,109760.0,0.34169574]
[1757002943735,0.18414914,109770.0,109750.0,0.3044868]
[1757002943941,0.18221574,109760.0,109750.0,0.4589268]
[1757002944149,0.18221574,109760.0,109750.0,0.3065768]
[1757002944349,0.18221574,109760.0,109750.0,0.4610168]
[1757002944903,0.56165625,109760.0,109750.0,0.3036268]
[1757002945104,0.56165625,109760.0,109750.0,0.4590668]
[1757002945514,0.55968965,109770.0,109750.0,0.4620168]
[1757002945730,0.56278965,109770.0,109750.0,0.3075768]
[1757002945903,0.94224676,109760.0,109750.0,0.001]
[1757002946105,1.09664676,109760.0,109750.0,0.001]
[1757002946305,0.18223234,109750.0,109740.0,0.36403041]
[1757002946600,0.56167285,109750.0,109740.0,0.4580364]
[1757002946785,0.55972285,109750.0,109740.0,0.4609864]
[1757002947018,0.55972285,109750.0,109740.0,0.18728099]
[1757002947019,0.37944051,109750.0,109740.0,0.18728099]
[1757002947175,0.56167285,109750.0,109740.0,0.1544]
[1757002947390,0.56167285,109750.0,109740.0,0.1564]
[1757002947902,0.56477285,109750.0,109740.0,0.002]
[1757002948304,0.94226336,109750.0,109740.0,0.002]
[1757002948512,0.94226336,109750.0,109740.0,0.004]
[1757002948914,0.56477285,109750.0,109740.0,0.004]
[1757002949078,0.56477285,109750.0,109740.0,0.002]
[1757002949597,0.56477285,109750.0,109740.0,0.001]
[1757002949980,0.56477285,109750.0,109740.0,0.002]
[1757002949981,0.94226336,109750.0,109740.0,0.002]
[1757002950182,1.37107935,109750.0,109740.0,0.002]
[1757002950380,1.14798884,109750.0,109740.0,0.002]
[1757002950591,1.15108884,109750.0,109740.0,0.002]
[1757002950819,1.52857935,109750.0,109740.0,0.002]
[1757002951795,1.5559766,109750.0,109740.0,0.002]
[1757002951998,1.0834701,109750.0,109740.0,0.18633895]
[1757002952198,1.0834701,109750.0,109740.0,0.00409]
[1757002952411,1.0834701,109750.0,109740.0,0.002]
[1757002952708,0.7434701,109750.0,109740.0,0.18424895]
[1757002953119,0.7434701,109750.0,109740.0,0.002]
[1757002953745,0.36597959,109750.0,109740.0,0.18928895]
[1757002953955,0.7415201,109750.0,109740.0,0.18928895]
[1757002954194,0.7434701,109750.0,109740.0,0.18928895]
[1757002954373,0.7434701,109750.0,109740.0,0.18633895]
[1757002954898,0.7434701,109750.0,109740.0,0.00409]
[1757002955246,0.7434701,109750.0,109740.0,0.18633895]
[1757002955456,0.74329551,109750.0,109740.0,0.18633895]
[1757002956061,0.74134551,109750.0,109740.0,0.18929895]
[1757002956462,0.18221574,109760.0,109740.0,0.18929895]
[1757002956463,0.89953166,109760.0,109750.0,0.18223234]
[1757002956667,0.71604166,109760.0,109740.0,0.18720895]
[1757002956867,0.92903573,109760.0,109750.0,0.18223234]
[1757002957149,0.74343573,109760.0,109750.0,0.18223234]
[1757002957329,0.74343573,109760.0,109740.0,0.18520895]
[1757002957542,0.58903573,109760.0,109750.0,0.18720234]
[1757002957743,0.58903573,109760.0,109740.0,0.18520895]
[1757002957982,0.74343573,109760.0,109750.0,0.18223234]
[1757002958169,0.58903573,109760.0,109750.0,0.18223234]
[1757002958428,0.58903573,109760.0,109750.0,0.18720234]
[1757002958429,0.74343573,109760.0,109750.0,0.18720234]
[1757002958639,0.74343573,109760.0,109740.0,0.18520895]
[1757002958640,0.18223234,109750.0,109740.0,0.18520895]
[1757002958851,0.18223234,109750.0,109740.0,0.34161895]
[1757002959063,0.56165826,109750.0,109740.0,0.18721895]
[1757002959280,0.56165826,109750.0,109740.0,0.18224895]
[1757002959675,0.56165826,109750.0,109730.0,0.3761306]
[1757002959880,0.56165826,109750.0,109740.0,0.18224895]
[1757002960278,0.56165826,109750.0,109740.0,0.18525895]
[1757002960712,0.56165826,109750.0,109740.0,0.18821895]
[1757002960939,0.34572652,109760.0,109740.0,0.18821895]
[1757002961166,0.19132652,109760.0,109750.0,0.18223234]
[1757002961389,0.72515244,109760.0,109740.0,0.18720895]
[1757002961886,0.57075244,109760.0,109750.0,0.18223234]
[1757002962099,0.71393166,109760.0,109750.0,0.18720234]
[1757002962330,0.1544,109760.0,109750.0,0.18720234]
[1757002962549,0.33661574,109760.0,109750.0,0.18720234]
[1757002963438,0.02739209,109770.0,109760.0,0.18221574]
[1757002963674,0.6463653,109780.0,109760.0,0.18718574]
[1757002963915,0.73258122,109780.0,109760.0,0.18718574]
[1757002964810,0.57818122,109780.0,109770.0,0.18219914]
[1757002964996,0.73469122,109780.0,109770.0,0.18219914]
[1757002965570,0.3573753,109780.0,109760.0,0.18517574]
[1757002966193,0.18219914,109770.0,109760.0,0.18517574]
[1757002966397,0.18219914,109770.0,109760.0,0.18718574]
[1757002967845,0.18219914,109770.0,109760.0,0.18818574]
[1757002968046,0.18430914,109770.0,109760.0,0.18818574]
[1757002968480,0.18219914,109770.0,109760.0,0.18818574]
[1757002969155,0.18219914,109770.0,109760.0,0.18918574]
[1757002969906,0.3552653,109780.0,109760.0,0.18918574]
[1757002970720,0.18219914,109770.0,109760.0,0.18818574]
[1757002971136,0.18219914,109770.0,109760.0,0.18718574]
[1757002972518,0.18219914,109770.0,109760.0,0.18818574]
[1757002972946,0.18219914,109770.0,109760.0,0.18918574]
[1757002973404,0.96668522,109780.0,109760.0,0.18918574]
[1757002973621,0.96668522,109780.0,109760.0,0.34358574]
[1757002974133,0.18219914,109770.0,109760.0,0.18918574]
[1757002974334,0.18219914,109770.0,109760.0,0.18818574]
[1757002975089,0.18430914,109770.0,109760.0,0.18718574]
[1757002975788,0.18219914,109770.0,109760.0,0.18818574]
[1757002976263,0.18219914,109770.0,109760.0,0.18918574]
[1757002976489,0.96969522,109780.0,109760.0,0.18918574]
[1757002977144,0.96668522,109780.0,109770.0,0.18219914]
[1757002977359,0.3573753,109780.0,109770.0,0.18219914]
[1757002977504,0.3573753,109780.0,109770.0,0.18420914]
[1757002977708,0.3573753,109780.0,109770.0,0.18716914]
[1757002978887,0.16385918,109780.0,109770.0,0.18716914]
[1757002979088,0.34604172,109780.0,109770.0,0.18716914]
[1757002979292,0.34815172,109780.0,109770.0,0.00497]
[1757002979500,0.34815172,109780.0,109770.0,0.18716914]
[1757002980748,0.16385918,109780.0,109770.0,0.18716914]
[1757002981270,0.34604172,109780.0,109770.0,0.18716914]
[1757002981467,0.16385918,109780.0,109770.0,0.18716914]
[1757002981762,0.34604172,109780.0,109770.0,0.18716914]
[1757002982186,0.34815172,109780.0,109770.0,0.18716914]
[1757002983311,0.18219914,109770.0,109760.0,0.18517574]
[1757002983496,0.79873906,109770.0,109750.0,0.02738602]
[1757002983694,0.18430914,109770.0,109760.0,0.18221574]
[1757002984014,0.35515084,109780.0,109760.0,0.18718574]
[1757002984219,0.18219914,109770.0,109760.0,0.18718574]
[1757002985076,0.18219914,109770.0,109760.0,0.18918574]
[1757002985658,0.18430914,109770.0,109760.0,0.002]
[1757002985866,0.56145007,109770.0,109760.0,0.002]
[1757002986069,0.56456007,109770.0,109760.0,0.002]
[1757002986410,4.697e-05,109780.0,109770.0,0.18219914]
[1757002986549,4.697e-05,109780.0,109770.0,0.80776606]
[1757002986741,4.697e-05,109780.0,109770.0,0.81079606]
[1757002988300,4.697e-05,109780.0,109770.0,0.43365513]
[1757002991846,4.697e-05,109780.0,109770.0,0.81079606]
[1757002992028,4.697e-05,109780.0,109770.0,0.43365513]
[1757002992632,4.697e-05,109780.0,109770.0,0.43361513]
[1757002993755,0.00213697,109780.0,109770.0,0.43361513]
[1757002993934,0.00213697,109780.0,109770.0,0.18737914]
[1757002994166,0.18431951,109780.0,109770.0,0.33651914]
[1757002994566,0.18431951,109780.0,109770.0,0.34169914]
[1757002995195,0.18431951,109780.0,109770.0,0.33651914]
[1757002995549,0.56457044,109780.0,109760.0,0.18524574]
[1757002995763,0.18219914,109770.0,109760.0,0.43148173]
[1757002995964,0.18428914,109770.0,109760.0,0.18739574]
[1757002996315,0.56143007,109770.0,109760.0,0.18221574]
[1757002996520,0.18428914,109770.0,109760.0,0.33868574]
[1757002996723,0.18428914,109770.0,109760.0,0.34171574]
[1757002997084,0.18428914,109770.0,109760.0,0.34271574]
[1757002997505,0.18428914,109770.0,109760.0,0.1605]
[1757002997821,0.18428914,109770.0,109760.0,0.15532]
[1757002998024,0.18428914,109770.0,109760.0,0.33753574]
[1757002998231,0.33860914,109770.0,109760.0,0.001]
[1757002998405,0.71886007,109770.0,109760.0,0.002]
[1757002999711,0.71575007,109770.0,109760.0,0.002]
[1757003000138,0.18222951,109780.0,109760.0,0.19167343]
[1757003000313,0.71369044,109780.0,109760.0,0.18939574]
[1757003000521,0.71369044,109780.0,109770.0,0.18522914]
[1757003000522,0.18222951,109780.0,109770.0,0.18522914]
[1757003000732,0.18222951,109780.0,109770.0,0.18737914]
[1757003001368,4.697e-05,109780.0,109770.0,0.65643606]
[1757003005069,4.697e-05,109780.0,109770.0,0.27929513]
[1757003005994,4.697e-05,109780.0,109770.0,0.65643606]
[1757003006404,4.697e-05,109780.0,109770.0,1.08411581]
[1757003006608,4.697e-05,109780.0,109770.0,0.73435553]
[1757003006808,4.697e-05,109780.0,109770.0,1.11149646]
[1757003007529,4.697e-05,109780.0,109770.0,1.11549646]
[1757003008085,4.697e-05,109780.0,109770.0,1.11349646]
[1757003008209,4.697e-05,109780.0,109770.0,1.11149646]
[1757003008412,4.697e-05,109780.0,109770.0,1.11449646]
[1757003008642,4.697e-05,109780.0,109770.0,1.11749646]
[1757003012087,4.697e-05,109780.0,109770.0,0.89463553]
[1757003012274,4.697e-05,109780.0,109770.0,0.3632146]
[1757003012741,4.697e-05,109780.0,109770.0,0.5174946]
[1757003013378,4.697e-05,109780.0,109770.0,0.89463553]
[1757003013765,4.697e-05,109780.0,109770.0,0.74035553]
[1757003013985,4.697e-05,109780.0,109770.0,0.89463553]
[1757003015158,4.697e-05,109780.0,109770.0,0.5174946]
[1757003015390,4.697e-05,109780.0,109770.0,0.3632146]
[1757003015584,4.697e-05,109780.0,109770.0,0.5174946]
[1757003015874,4.697e-05,109780.0,109770.0,0.3632146]
[1757003016472,4.697e-05,109780.0,109770.0,0.46695578]
[1757003016667,0.00207697,109780.0,109770.0,0.46695578]
[1757003017432,4.697e-05,109780.0,109770.0,0.46695578]
[1757003017631,0.37707347,109780.0,109770.0,0.46695578]
[1757003018015,4.697e-05,109780.0,109770.0,0.46695578]
[1757003019920,4.697e-05,109780.0,109770.0,0.84398228]
[1757003021517,4.697e-05,109780.0,109770.0,0.46695578]
[1757003021727,4.697e-05,109780.0,109770.0,0.46691578]
[1757003022495,0.37910347,109780.0,109770.0,0.46173578]
[1757003022735,0.37707347,109780.0,109770.0,0.46691578]
[1757003022931,4.697e-05,109780.0,109770.0,0.46691578]
[1757003023512,4.697e-05,109780.0,109770.0,1.2048811]
[1757003023730,4.697e-05,109780.0,109770.0,1.6787076]
[1757003024144,4.697e-05,109780.0,109770.0,1.7287076]
[1757003025170,4.697e-05,109780.0,109770.0,1.6787076]
[1757003025376,4.697e-05,109780.0,109770.0,1.7287076]
[1757003026529,4.697e-05,109780.0,109770.0,0.9746546]
[1757003026928,4.697e-05,109780.0,109770.0,1.3516811]
[1757003028310,4.697e-05,109780.0,109770.0,1.7287076]
[1757003029629,4.697e-05,109780.0,109770.0,1.3516811]
[1757003030673,0.00207697,109780.0,109770.0,0.8949746]
[1757003030907,4.697e-05,109780.0,109770.0,1.2720011]
[1757003031156,0.37910347,109780.0,109770.0,0.34723513]
[1757003031400,0.00207697,109780.0,109770.0,0.50147513]
[1757003031612,0.00207697,109780.0,109770.0,0.50357513]
[1757003031831,0.00207697,109780.0,109770.0,0.50665513]
[1757003032008,4.697e-05,109780.0,109770.0,0.50665513]
[1757003033771,0.37910347,109780.0,109770.0,0.28011513]
[1757003033968,0.37910347,109780.0,109770.0,0.43431513]
[1757003034397,0.37910347,109780.0,109770.0,0.28221513]
[1757003034601,0.37910347,109780.0,109770.0,0.43949513]
[1757003034802,0.37707347,109780.0,109770.0,0.43949513]
[1757003035572,4.697e-05,109780.0,109770.0,0.28529513]
[1757003035776,0.37707347,109780.0,109770.0,0.43949513]
[1757003036640,0.37910347,109780.0,109770.0,0.43431513]
[1757003036775,0.38219347,109780.0,109770.0,0.43431513]
[1757003036997,0.37910347,109780.0,109770.0,0.43431513]
[1757003037654,0.00207697,109780.0,109770.0,0.43431513]
[1757003037810,0.37910347,109780.0,109770.0,0.43949513]
[1757003038010,0.37910347,109780.0,109770.0,0.43641513]
[1757003038414,0.37910347,109780.0,109770.0,0.43431513]
[1757003038613,0.94140251,109780.0,109770.0,0.34239914]
[1757003038969,0.56437601,109780.0,109770.0,0.18819914]
[1757003039171,0.56437601,109780.0,109770.0,0.34239914]
[1757003039544,0.38219347,109780.0,109770.0,0.18819914]
[1757003039746,0.37910347,109780.0,109770.0,0.33939914]
[1757003040113,0.37910347,109780.0,109770.0,0.34357914]
[1757003040303,0.37910347,109780.0,109770.0,0.34557914]
[1757003040604,0.37910347,109780.0,109770.0,0.34249914]
[1757003040830,0.37910347,109780.0,109770.0,0.34557914]
[1757003041038,0.37910347,109780.0,109770.0,0.18829914]
[1757003041169,0.56437601,109780.0,109770.0,0.18619914]
[1757003041390,0.56437601,109780.0,109770.0,0.34039914]
[1757003042205,0.94140251,109780.0,109770.0,0.1582]
[1757003042408,0.94140251,109780.0,109770.0,0.34039914]
[1757003042832,0.94140251,109780.0,109770.0,0.18619914]
[1757003043036,0.94140251,109780.0,109770.0,0.34039914]
[1757003043593,0.94140251,109780.0,109770.0,0.18619914]
[1757003044001,0.94140251,109780.0,109770.0,0.004]
[1757003045629,0.94140251,109780.0,109770.0,0.002]
[1757003045855,0.94140251,109780.0,109770.0,0.003]
[1757003046064,0.94140251,109780.0,109770.0,0.001]
[1757003046422,0.94140251,109780.0,109770.0,0.002]
[1757003047022,0.34154951,109780.0,109770.0,0.18419914]
[1757003047225,1.09560251,109780.0,109770.0,0.18419914]
[1757003047438,0.53330347,109780.0,109770.0,0.18419914]
[1757003047655,1.09251251,109780.0,109770.0,0.18419914]
[1757003048151,0.33845951,109780.0,109770.0,0.18419914]
[1757003048356,1.09251251,109780.0,109770.0,0.18419914]
[1757003048559,0.91032997,109780.0,109770.0,0.18419914]
[1757003048975,1.09251251,109780.0,109770.0,0.18419914]
[1757003050850,1.09573251,109780.0,109770.0,0.002]
[1757003052248,1.81275901,109780.0,109770.0,0.002]
[1757003052450,1.904675,109780.0,109770.0,0.002]
[1757003052653,1.971795,109780.0,109770.0,0.002]
[1757003053311,1.817595,109780.0,109770.0,0.002]
[1757003053524,1.99918707,109780.0,109770.0,0.002]
[1757003054345,1.6200836,109780.0,109770.0,0.002]
[1757003054540,1.9976301,109780.0,109770.0,0.002]
[1757003055068,3.22062559,109780.0,109770.0,0.002]
[1757003055270,3.24025498,109780.0,109770.0,0.002]
[1757003055450,1.86305949,109780.0,109770.0,0.002]
[1757003055652,2.01725949,109780.0,109770.0,0.002]
[1757003055872,2.01725949,109780.0,109770.0,0.001]
[1757003056275,2.39428599,109780.0,109770.0,0.001]
[1757003056514,2.39428599,109780.0,109740.0,0.07660631]
[1757003056515,0.18223234,109750.0,109740.0,0.07660631]
[1757003056707,0.71345884,109750.0,109740.0,0.26097526]
[1757003056848,0.33841234,109750.0,109740.0,0.07872631]
[1757003057313,0.93826534,109750.0,109740.0,0.26097526]
[1757003057451,0.33643234,109750.0,109740.0,0.26097526]
[1757003057646,0.71345884,109750.0,109740.0,0.18742895]
[1757003057869,1.1016205,109750.0,109740.0,0.00618]